Workbook

Sheet Promocion 10+10
A2: =+TODAY() -> 2023-11-08 | B2: 36111.71
A4: Promoción 10+10 CON secundarios | G4: Tipo de Unidad | H4: Unidad | I4: Precio Lista | J4: Dcto | K4: Precio De Venta | L4: Precio Promoción 10+10 | M4: % Sobre Precio Lista | P4: 1
C5: UF | D5: $$ | G5: Bien Principal | H5: D309 | I5: 2947 | J5: 0.05 | K5: =ROUND(I5*(1-$J$5),0) -> 2800 | L5: =C11 -> 3221 | M5: =+L5/I5-1 -> 0.0929759077
A6: Precio Bien Principal | C6: =+K5 -> 2800 | D6: =ValorUF*PrecioVta -> 101112788 | G6: Bodega | H6: 65 | I6: 99 | K6: =ROUND(I6*(1-$J$6),0) -> 99 | L6: =+K6 -> 99
A7: Precio Secundarios | C7: =+K6+K7 -> 409 | D7: =+C7*ValorUF -> 14769689.39 | G7: Estacionamiento | H7: 58 | I7: 310 | K7: =ROUND(I7*(1-$J$7),0) -> 310 | L7: =+K7 -> 310
A8: Compra Total | C8: =+PrecioVta+C7 -> 3209 | D8: =+C8*ValorUF -> 115882477.4 | G8: Total | I8: =SUM(I5:I7) -> 3356 | K8: =SUM(K5:K7) -> 3209 | L8: =+SUM(L5:L7) -> 3630
A9: Factor División | C9: =IF(SUM(B17:B19)=1,(Financiamiento+Pie)-(PorcentajeBonoPie*19%/1.19),"Revisar %%") -> 0.8840336134
A10: Precio unidad con BP | C10: =ROUND(C8/C9,0) -> 3630 | D10: =ValorUF*C10 -> 131085507.3 | G10: Simulación CON Promoción 10+10
A11: Precio Dpto + Promocion | C11: =+C10-C12 -> 3221 | G11: Tasa | H11: 0.045 | J11: Crédito Hip. | L11: =+CreditoHip -> 2904
A12: Precio Secundarios | C12: =+C7 -> 409 | H12: Dividendo | K12: Renta | N12: =ROUND(+C16-L11/Financiamiento,2) -> 0
A13: IVA Sobreprecio | C13: =(TotalCompra*PorcentajeBonoPie*0.19)/(1.19*$C$9) -> 57.95722433 | G13: Plazo | H13: UF | I13: $$ | K13: UF | L13: $$
G14: 12 | H14: =PMT(Tasa/12,G14*12,-$L$11) -> 26.13623698 | I14: =ROUND(H14*ValorUF,0) -> 943824 | K14: =ROUND(H14/0.25,2) -> 104.54 | L14: =I14/0.25 -> 3775296
A15: Resumen Promoción 10+10 | G15: 15 | H15: =PMT(Tasa/12,G15*12,-$L$11) -> 22.21540511 | I15: =ROUND(H15*ValorUF,0) -> 802236 | K15: =ROUND(H15/0.25,2) -> 88.86 | L15: =I15/0.25 -> 3208944
A16: Precio Total Promoción 10+10 | C16: =C10 -> 3630 | D16: =C16*ValorUF -> 131085507.3 | E16: IVA | G16: 20 | H16: =PMT(Tasa/12,G16*12,-$L$11) -> 18.37213789 | I16: =ROUND(H16*ValorUF,0) -> 663449 | K16: 73.49 | L16: 2653796
A17: Crédito Hip. | B17: =1-Pie-PorcentajeBonoPie -> 0.8 | C17: =C16*B17 -> 2904 | D17: =C17*ValorUF -> 104868405.8 | E17: =C17/1.19*19% -> 463.6638655 | G17: 25 | H17: =PMT(Tasa/12,G17*12,-$L$11) -> 16.14137516 | I17: =ROUND(H17*ValorUF,0) -> 582893 | K17: 64.57 | L17: 2331572
A18: Pie | B18: 0.1 | C18: =+C16*B18 -> 363 | D18: =C18*ValorUF -> 13108550.73 | E18: =C18/1.19*19% -> 57.95798319 | G18: 30 | H18: =PMT(Tasa/12,G18*12,-$L$11) -> 14.7141414 | I18: =ROUND(H18*ValorUF,0) -> 531353 | K18: 58.86 | L18: 2125412
A19: Promoción 10+10 | B19: 0.1 | C19: =+C16*B19 -> 363 | D19: =C19*ValorUF -> 13108550.73 | E19: =C19/1.19*19% -> 57.95798319
A20: Recaudación Inmob Bruto | C20: =C17+C18 -> 3267 | G20: Simulación SIN Promoción 10+10
A21: IVA BP | C21: =C13 -> 57.95722433 | G21: Tasa | H21: =+Tasa -> 0.045 | J21: Crédito Hip. | L21: =+TotalCompra*Financiamiento -> 2567.2
A22: Recaudación Inmob Neto | C22: =C20-C21 -> 3209.042776 | H22: Dividendo | K22: Renta | N22: =+K8-L21/Financiamiento -> 0
A23: Factura | G23: Plazo | H23: UF | I23: $$ | K23: UF | L23: $$
A24: Neto | C24: =C16/1.19 -> 3050.420168 | D24: =+C24*ValorUF -> 110155888.5 | G24: 12 | H24: =PMT(Tasa/12,G24*12,-$L$21) -> 23.1050095 | I24: =ROUND(H24*ValorUF,0) -> 834361 | K24: =ROUND(H24/0.25,2) -> 92.42 | L24: =I24/0.25 -> 3337444
A25: Iva | C25: =C24*19% -> 579.5798319 | D25: =+C25*ValorUF -> 20929618.81 | E25: =IF(ROUND(C25-SUM(E17:E19),0)=0,"IVA OK","Revisar IVA") -> IVA OK | G25: 15 | H25: =PMT(Tasa/12,G25*12,-$L$21) -> 19.63890771 | I25: =ROUND(H25*ValorUF,0) -> 709195 | K25: =ROUND(H25/0.25,2) -> 78.56 | L25: =I25/0.25 -> 2836780
A26: Total | C26: =+C24+C25 -> 3630 | D26: =+C26*ValorUF -> 131085507.3 | G26: 20 | H26: =PMT(Tasa/12,G26*12,-$L$21) -> 16.24137479 | I26: =ROUND(H26*ValorUF,0) -> 586504 | K26: 64.97 | L26: 2346016
G27: 25 | H27: =PMT(Tasa/12,G27*12,-$L$21) -> 14.26933137 | I27: =ROUND(H27*ValorUF,0) -> 515290 | K27: 57.08 | L27: 2061160
G28: 30 | H28: =PMT(Tasa/12,G28*12,-$L$21) -> 13.00762527 | I28: =ROUND(H28*ValorUF,0) -> 469728 | K28: 52.03 | L28: 1878912

Sheet Hoja1
A2: Valor Lista | B2: 3765
A3: Valor con dscto 3% | B3: 3652
A4: Estacionamiento | B4: 250
A6: Valor Total | B6: 3902
A7: Pie 10% | B7: 390
A8: Chip | B8: 3512
A9: Pie
A10: 5% contado | B10: 195
A11: 5% Pagaré | B11: 195

Sheet Valor UF (hidden)
A1: Fecha | B1: Valor
A2: 2023-09-09 | B2: 36172.21
A3: 2023-09-08 | B3: 36167.55
A4: 2023-09-07 | B4: 36162.9
A5: 2023-09-06 | B5: 36158.24
A6: 2023-09-05 | B6: 36153.58
A7: 2023-09-04 | B7: 36148.93
A8: 2023-09-03 | B8: 36144.27
A9: 2023-09-02 | B9: 36139.62
A10: 2023-09-01 | B10: 36134.97
A11: 2023-08-31 | B11: 36130.31
A12: 2023-08-30 | B12: 36125.66
A13: 2023-08-29 | B13: 36121.01
A14: 2023-08-28 | B14: 36116.36
A15: 2023-08-27 | B15: 36111.71
A16: 2023-08-26 | B16: 36107.06
A17: 2023-08-25 | B17: 36102.41
A18: 2023-08-24 | B18: 36097.76
A19: 2023-08-23 | B19: 36093.11
A20: 2023-08-22 | B20: 36088.46
A21: 2023-08-21 | B21: 36083.82
A22: 2023-08-20 | B22: 36079.17
A23: 2023-08-19 | B23: 36074.53
A24: 2023-08-18 | B24: 36069.88
A25: 2023-08-17 | B25: 36065.24
A26: 2023-08-16 | B26: 36060.59
A27: 2023-08-15 | B27: 36055.95
A28: 2023-08-14 | B28: 36051.31
A29: 2023-08-13 | B29: 36046.66
A30: 2023-08-12 | B30: 36042.02
A31: 2023-08-11 | B31: 36037.38
A32: 2023-08-10 | B32: 36032.74
A33: 2023-08-09 | B33: 36028.1
A34: 2023-08-08 | B34: 36030.43
A35: 2023-08-07 | B35: 36032.75
A36: 2023-08-06 | B36: 36035.08
A37: 2023-08-05 | B37: 36037.41
A38: 2023-08-04 | B38: 36039.73
A39: 2023-08-03 | B39: 36042.06
A40: 2023-08-02 | B40: 36044.39
A41: 2023-08-01 | B41: 36046.72
A42: 2023-07-31 | B42: 36049.05
A43: 2023-07-30 | B43: 36051.37
A44: 2023-07-29 | B44: 36053.7
A45: 2023-07-28 | B45: 36056.03
A46: 2023-07-27 | B46: 36058.36
A47: 2023-07-26 | B47: 36060.69
A48: 2023-07-25 | B48: 36063.02
A49: 2023-07-24 | B49: 36065.35
A50: 2023-07-23 | B50: 36067.68
A51: 2023-07-22 | B51: 36070
A52: 2023-07-21 | B52: 36072.33
A53: 2023-07-20 | B53: 36074.66
A54: 2023-07-19 | B54: 36076.99
A55: 2023-07-18 | B55: 36079.32
A56: 2023-07-17 | B56: 36081.65
A57: 2023-07-16 | B57: 36083.98
A58: 2023-07-15 | B58: 36086.31
A59: 2023-07-14 | B59: 36088.64
A60: 2023-07-13 | B60: 36090.98
A61: 2023-07-12 | B61: 36093.31
A62: 2023-07-11 | B62: 36095.64
A63: 2023-07-10 | B63: 36097.97
A64: 2023-07-09 | B64: 36100.3
A65: 2023-07-08 | B65: 36099.1
A66: 2023-07-07 | B66: 36097.9
A67: 2023-07-06 | B67: 36096.7
A68: 2023-07-05 | B68: 36095.49
A69: 2023-07-04 | B69: 36094.29
A70: 2023-07-03 | B70: 36093.09
A71: 2023-07-02 | B71: 36091.89
A72: 2023-07-01 | B72: 36090.68
A73: 2023-06-30 | B73: 36089.48
A74: 2023-06-29 | B74: 36088.28
A75: 2023-06-28 | B75: 36087.08
A76: 2023-06-27 | B76: 36085.87
A77: 2023-06-26 | B77: 36084.67
A78: 2023-06-25 | B78: 36083.47
A79: 2023-06-24 | B79: 36082.27
A80: 2023-06-23 | B80: 36081.07
A81: 2023-06-22 | B81: 36079.86
A82: 2023-06-21 | B82: 36078.66
A83: 2023-06-20 | B83: 36077.46
A84: 2023-06-19 | B84: 36076.26
A85: 2023-06-18 | B85: 36075.06
A86: 2023-06-17 | B86: 36073.85
A87: 2023-06-16 | B87: 36072.65
A88: 2023-06-15 | B88: 36071.45
A89: 2023-06-14 | B89: 36070.25
A90: 2023-06-13 | B90: 36069.05
A91: 2023-06-12 | B91: 36067.84
A92: 2023-06-11 | B92: 36066.64
A93: 2023-06-10 | B93: 36065.44
A94: 2023-06-09 | B94: 36064.24
A95: 2023-06-08 | B95: 36060.75
A96: 2023-06-07 | B96: 36057.27
A97: 2023-06-06 | B97: 36053.79
A98: 2023-06-05 | B98: 36050.3
A99: 2023-06-04 | B99: 36046.82
A100: 2023-06-03 | B100: 36043.34
A101: 2023-06-02 | B101: 36039.85
A102: 2023-06-01 | B102: 36036.37
A103: 2023-05-31 | B103: 36032.89
A104: 2023-05-30 | B104: 36029.41
A105: 2023-05-29 | B105: 36025.93
A106: 2023-05-28 | B106: 36022.44
A107: 2023-05-27 | B107: 36018.96
A108: 2023-05-26 | B108: 36015.48
A109: 2023-05-25 | B109: 36012
A110: 2023-05-24 | B110: 36008.52
A111: 2023-05-23 | B111: 36005.05
A112: 2023-05-22 | B112: 36001.57
A113: 2023-05-21 | B113: 35998.09
A114: 2023-05-20 | B114: 35994.61
A115: 2023-05-19 | B115: 35991.13
A116: 2023-05-18 | B116: 35987.65
A117: 2023-05-17 | B117: 35984.18
A118: 2023-05-16 | B118: 35980.7
A119: 2023-05-15 | B119: 35977.22
A120: 2023-05-14 | B120: 35973.75
A121: 2023-05-13 | B121: 35970.27
A122: 2023-05-12 | B122: 35966.79
A123: 2023-05-11 | B123: 35963.32
A124: 2023-05-10 | B124: 35959.84
A125: 2023-05-09 | B125: 35956.37
A126: 2023-05-08 | B126: 35943.26
A127: 2023-05-07 | B127: 35930.15
A128: 2023-05-06 | B128: 35917.05
A129: 2023-05-05 | B129: 35903.96
A130: 2023-05-04 | B130: 35890.87
A131: 2023-05-03 | B131: 35877.78
A132: 2023-05-02 | B132: 35864.7
A133: 2023-05-01 | B133: 35851.62
A134: 2023-04-30 | B134: 35838.55
A135: 2023-04-29 | B135: 35825.49
A136: 2023-04-28 | B136: 35812.42
A137: 2023-04-27 | B137: 35799.37
A138: 2023-04-26 | B138: 35786.31
A139: 2023-04-25 | B139: 35773.27
A140: 2023-04-24 | B140: 35760.22
A141: 2023-04-23 | B141: 35747.19
A142: 2023-04-22 | B142: 35734.15
A143: 2023-04-21 | B143: 35721.12
A144: 2023-04-20 | B144: 35708.1
A145: 2023-04-19 | B145: 35695.08
A146: 2023-04-18 | B146: 35682.07
A147: 2023-04-17 | B147: 35669.06
A148: 2023-04-16 | B148: 35656.05
A149: 2023-04-15 | B149: 35643.05
A150: 2023-04-14 | B150: 35630.06
A151: 2023-04-13 | B151: 35617.07
A152: 2023-04-12 | B152: 35604.08
A153: 2023-04-11 | B153: 35591.1
A154: 2023-04-10 | B154: 35578.12
A155: 2023-04-09 | B155: 35565.15
A156: 2023-04-08 | B156: 35566.3
A157: 2023-04-07 | B157: 35567.44
A158: 2023-04-06 | B158: 35568.59
A159: 2023-04-05 | B159: 35569.74
A160: 2023-04-04 | B160: 35570.89
A161: 2023-04-03 | B161: 35572.04
A162: 2023-04-02 | B162: 35573.19
A163: 2023-04-01 | B163: 35574.33
A164: 2023-03-31 | B164: 35575.48
A165: 2023-03-30 | B165: 35576.63
A166: 2023-03-29 | B166: 35577.78
A167: 2023-03-28 | B167: 35578.93
A168: 2023-03-27 | B168: 35580.07
A169: 2023-03-26 | B169: 35581.22
A170: 2023-03-25 | B170: 35582.37
A171: 2023-03-24 | B171: 35583.52
A172: 2023-03-23 | B172: 35584.67
A173: 2023-03-22 | B173: 35585.82
A174: 2023-03-21 | B174: 35586.96
A175: 2023-03-20 | B175: 35588.11
A176: 2023-03-19 | B176: 35589.26
A177: 2023-03-18 | B177: 35590.41
A178: 2023-03-17 | B178: 35591.56
A179: 2023-03-16 | B179: 35592.71
A180: 2023-03-15 | B180: 35593.86
A181: 2023-03-14 | B181: 35595.01
A182: 2023-03-13 | B182: 35596.15
A183: 2023-03-12 | B183: 35597.3
A184: 2023-03-11 | B184: 35598.45
A185: 2023-03-10 | B185: 35599.6
A186: 2023-03-09 | B186: 35600.75
A187: 2023-03-08 | B187: 35590.62
A188: 2023-03-07 | B188: 35580.49
A189: 2023-03-06 | B189: 35570.37
A190: 2023-03-05 | B190: 35560.24
A191: 2023-03-04 | B191: 35550.13
A192: 2023-03-03 | B192: 35540.01
A193: 2023-03-02 | B193: 35529.9
A194: 2023-03-01 | B194: 35519.79
A195: 2023-02-28 | B195: 35509.68
A196: 2023-02-27 | B196: 35499.58
A197: 2023-02-26 | B197: 35489.48
A198: 2023-02-25 | B198: 35479.38
A199: 2023-02-24 | B199: 35469.28
A200: 2023-02-23 | B200: 35459.19
... 53 more rows
